bitfinex/quotes_ETHUSD_20241116
["timestamp","ask_amount","ask_price","bid_price","bid_amount"]
[1731759904966,3.13508,3189.8,3189.1,3.0]
[1731759905566,3.13509,3189.7,3189.1,3.0]
[1731759905730,3.13519,3189.6,3189.0,0.01]
[1731759905930,3.13519,3189.6,3188.9,3.5121778]
[1731759906168,3.13519,3189.6,3188.6,6.13615]
[1731759906169,0.55,3189.7,3189.0,0.3663378]
[1731759906358,0.313489,3189.8,3189.0,0.3663378]
[1731759906359,3.13518,3189.6,3189.0,0.01]
[1731759906555,3.762199,3189.6,3189.0,0.01]
[1731759906741,3.13518,3189.6,3189.0,0.01]
[1731759906946,3.13518,3189.6,3189.0,0.37665061]
[1731759907145,3.1353,3189.5,3189.0,0.37665061]
[1731759907526,3.13501,3189.8,3189.1,3.13565]
[1731759907735,3.13516,3189.7,3189.1,0.36665061]
[1731759907955,3.13499,3189.8,3189.0,0.01]
[1731759908165,0.61359383,3190.0,3189.4,3.1353]
[1731759908428,3.0,3190.4,3189.4,0.01]
[1731759908657,6.13446,3190.4,3189.6,3.13516]
[1731759908933,3.13454,3190.3,3189.6,3.13516]
[1731759909132,3.0,3190.4,3189.4,3.14536]
[1731759909133,3.13441,3190.4,3189.8,3.13496]
[1731759909374,0.62364053,3190.4,3189.4,0.01]
[1731759909683,3.13295,3191.9,3190.2,0.01]
[1731759909684,3.13412,3190.7,3190.2,0.01]
[1731759909833,3.13332,3191.5,3189.7,3.14505]
[1731759910030,3.13332,3191.5,3189.6,3.0]
[1731759910031,3.13381,3191.0,3189.6,0.3128]
[1731759910238,3.13491,3189.9,3189.6,0.3128]
[1731759910551,3.1347,3190.1,3189.6,0.3128]
[1731759910743,3.1347,3190.1,3189.5,0.01]
[1731759910933,3.0,3190.8,3189.5,0.01]
[1731759910934,0.55,3190.7,3189.5,3.14523]
[1731759911133,3.1347,3190.1,3189.5,0.01]
[1731759911328,3.1347,3190.1,3189.5,3.14527]
[1731759911572,0.55,3190.7,3189.5,3.14527]
[1731759911573,3.1346,3190.2,3189.5,3.14527]
[1731759912070,3.13486,3190.0,3189.6,0.01]
[1731759912241,3.1346,3190.2,3189.6,0.01]
[1731759912450,3.68417,3190.7,3189.6,0.01]
[1731759912451,3.13451,3190.3,3189.6,0.01]
[1731759912679,3.13428,3190.6,3189.8,3.13497]
[1731759912861,3.1343,3190.5,3189.8,3.13497]
[1731759913237,0.64250834,3190.6,3189.8,3.13497]
[1731759913238,3.13441,3190.4,3189.8,3.14497]
[1731759913430,0.64250834,3190.6,3189.8,0.01]
[1731759913431,3.77670834,3190.6,3189.8,0.01]
[1731759913633,0.64250834,3190.6,3190.0,3.13479]
[1731759914282,0.64250834,3190.6,3190.2,3.14452]
[1731759914575,3.13328,3191.6,3190.2,3.14452]
[1731759914576,3.13411,3190.7,3190.2,0.01]
[1731759914879,3.13441,3190.4,3190.2,0.01]
[1731759915373,0.63404604,3190.8,3190.2,0.01]
[1731759915374,3.13433,3190.5,3190.2,0.01]
[1731759915679,0.63404604,3190.8,3190.2,0.01]
[1731759915680,3.13413,3190.7,3190.2,0.01]
[1731759915863,3.13423,3190.6,3190.2,0.01]
[1731759916067,3.1344,3190.4,3190.2,0.01]
[1731759916783,3.1343,3190.5,3190.2,0.01]
[1731759916936,3.13413,3190.7,3190.2,0.01]
[1731759917338,1.01084164,3190.8,3190.2,3.14459]
[1731759917646,3.13393,3190.9,3190.2,3.14459]
[1731759917647,3.13342,3191.4,3190.3,3.13446]
[1731759917850,0.314328,3191.5,3190.5,0.01]
[1731759918036,3.13363,3191.2,3190.5,0.01]
[1731759918242,3.13363,3191.2,3190.5,3.14428]
[1731759918665,3.13363,3191.2,3190.7,0.01]
[1731759918976,3.13309,3191.8,3190.7,0.01]
[1731759918977,0.64207016,3191.3,3190.7,0.01]
[1731759919151,3.13372,3191.1,3190.7,0.01]
[1731759919480,3.77564016,3191.3,3190.7,0.01]
[1731759919862,3.77564016,3191.3,3190.7,3.1441]
[1731759920063,3.77564016,3191.3,3190.3,3.0]
[1731759920064,3.13361,3191.2,3190.3,3.0]
[1731759920330,3.13361,3191.2,3190.6,0.01]
[1731759920490,0.64207016,3191.3,3190.8,0.01]
[1731759920639,0.64207016,3191.3,3191.0,3.13379]
[1731759920845,0.64207016,3191.3,3191.0,3.14379]
[1731759921152,0.64207016,3191.3,3191.1,3.13371]
[1731759921464,0.64207016,3191.3,3191.1,3.13364]
[1731759922439,3.13274,3192.1,3191.2,3.14361]
[1731759922660,3.13205,3192.8,3191.2,3.14361]
[1731759922661,3.13283,3192.0,3191.4,3.13334]
[1731759922850,0.313283,3192.0,3191.4,3.13334]
[1731759923071,3.13276,3192.1,3191.4,3.13334]
[1731759923253,3.77307676,3192.1,3191.4,3.13334]
[1731759923581,3.77307676,3192.1,3191.5,0.01]
[1731759923944,3.13254,3192.3,3191.5,0.01]
[1731759924285,3.74754483,3192.3,3191.6,3.1332]
[1731759924638,3.13265,3192.2,3191.6,3.1332]
[1731759925081,3.13265,3192.2,3191.5,0.01]
[1731759925286,3.13293,3191.9,3191.5,0.01]
[1731759925443,3.13263,3192.2,3191.5,0.01]
[1731759925644,0.61500483,3192.3,3191.7,3.13312]
[1731759925845,0.61500483,3192.3,3191.8,3.133]
[1731759926266,0.61500483,3192.3,3191.7,3.14312]
[1731759926478,3.13248,3192.4,3191.8,3.13301]
[1731759926984,3.13226,3192.6,3191.8,3.13301]
[1731759927186,4.05869,3192.6,3192.0,3.13282]
[1731759927642,3.13226,3192.6,3192.2,0.01]
[1731759928589,0.63235979,3192.8,3192.0,0.01]
[1731759928788,3.1325,3192.4,3191.8,0.01]
[1731759929083,3.13224,3192.6,3192.2,0.01]
[1731759929443,0.63235979,3192.8,3192.2,0.01]
[1731759929638,3.1324,3192.5,3192.2,0.01]
[1731759929843,0.63235979,3192.8,3192.2,0.01]
[1731759930087,0.63235979,3192.8,3191.8,6.13297]
[1731759930244,0.63235979,3192.8,3192.2,0.01]
[1731759930490,3.13236,3192.5,3192.2,0.01]
[1731759930732,3.13236,3192.5,3191.8,6.13297]
[1731759930733,3.13245,3192.4,3192.0,0.01]
[1731759930944,3.13323,3191.6,3191.1,0.01]
[1731759931090,3.0,3192.6,3191.1,3.14363]
[1731759931293,3.1328,3192.1,3191.5,0.01]
[1731759931523,0.55,3192.4,3191.5,0.01]
[1731759931839,0.55,3192.3,3191.5,0.01]
[1731759932004,3.13301,3191.9,3191.5,0.01]
[1731759932529,3.13283,3192.0,3191.5,0.01]
[1731759932686,0.703739,3192.3,3191.5,0.01]
[1731759932891,3.13308,3191.8,3191.5,0.01]
[1731759933429,3.75091918,3192.0,3190.9,3.13389]
[1731759933430,0.55,3191.9,3190.9,0.01]
[1731759933631,0.55,3191.9,3190.7,0.01]
[1731759933632,3.134,3190.9,3190.7,0.01]
[1731759933792,3.134,3190.9,3189.7,0.01]
[1731759933793,0.3134,3190.8,3190.1,0.01]
[1731759934147,0.3134,3190.8,3189.2,3.1355]
[1731759934148,3.13459,3190.2,3189.7,0.01]
[1731759934313,3.13483,3190.0,3189.7,0.01]
[1731759934653,3.13399,3190.9,3189.7,0.01]
[1731759934654,3.13442,3190.4,3189.7,0.01]
[1731759934801,0.313442,3190.3,3189.7,0.01]
[1731759935203,3.13469,3190.1,3189.7,0.01]
[1731759935448,3.13493,3189.9,3189.8,0.01]
[1731759935747,0.313442,3190.3,3189.3,0.01]
[1731759935908,3.13525,3189.6,3189.1,0.01]
[1731759936246,3.13528,3189.6,3189.3,0.01]
[1731759936430,3.135,3189.8,3189.3,0.01]
[1731759936613,0.61808204,3190.4,3189.3,0.01]
[1731759936614,0.55,3190.3,3189.3,0.01]
[1731759936814,3.1349,3189.9,3189.3,0.01]
[1731759937141,3.6845,3190.3,3189.3,0.01]
[1731759937340,0.4302582,3190.3,3189.7,0.01]
[1731759937549,0.61808204,3190.4,3189.7,0.01]
[1731759938051,0.61808204,3190.4,3190.2,0.01]
[1731759938616,3.13394,3190.9,3190.5,0.01]
[1731759938929,3.1333,3191.6,3189.9,0.01]
[1731759938930,3.13433,3190.5,3189.9,0.01]
[1731759939149,3.13421,3190.6,3189.9,0.01]
[1731759939323,3.13452,3190.3,3189.9,0.01]
[1731759939519,3.13479,3190.0,3189.7,3.01]
[1731759939738,3.13479,3190.0,3189.7,0.01]
[1731759939943,3.13414,3190.7,3189.4,0.01]
[1731759939944,3.55,3190.7,3189.4,0.01]
[1731759940141,3.1351,3189.7,3189.2,0.01]
[1731759940464,3.13458,3190.3,3189.6,0.01]
[1731759940608,3.6308604,3191.3,3189.8,0.01]
[1731759940609,3.13409,3190.8,3189.8,0.01]
[1731759940805,3.13418,3190.7,3189.9,3.13488]
[1731759941009,3.1343,3190.5,3189.8,0.01]
[1731759941247,3.13442,3190.4,3189.8,0.01]
[1731759941609,3.1347,3190.1,3189.8,0.01]
[1731759942118,3.13407,3190.8,3189.3,0.01]
[1731759942119,0.55,3190.5,3189.3,0.01]
[1731759942319,0.55,3190.5,3189.1,3.0]
[1731759942320,3.13468,3190.2,3189.6,0.01]
[1731759942632,3.13468,3190.2,3189.8,0.01]
[1731759943217,3.13431,3190.5,3189.8,0.01]
[1731759944155,3.13431,3190.5,3189.8,3.14496]
[1731759944328,0.63841986,3190.6,3189.9,3.13487]
[1731759944647,0.63841986,3190.6,3189.4,3.0]
[1731759944648,3.77269986,3190.6,3190.0,0.01]
[1731759944825,3.13451,3190.3,3190.0,0.01]
[1731759945020,0.63841986,3190.6,3190.0,0.01]
[1731759945275,3.1343,3190.5,3190.0,0.01]
[1731759945566,3.13394,3190.9,3190.3,0.01]
[1731759945710,0.61930737,3190.8,3190.3,0.01]
[1731759946560,3.75332737,3190.8,3190.5,0.01]
[1731759946919,3.13428,3190.6,3190.0,3.13478]
[1731759947217,3.13428,3190.6,3190.5,0.01]
[1731759947426,3.13428,3190.6,3190.1,3.0]
[1731759947657,3.13446,3190.4,3190.1,0.01]
[1731759947865,0.39957058,3190.6,3189.7,0.01]
[1731759947866,3.68431,3190.5,3189.7,0.01]
[1731759948165,3.13528,3189.5,3189.4,0.01]
[1731759948654,3.13467,3190.2,3189.7,0.01]
[1731759948655,3.13462,3190.2,3189.7,0.01]
[1731759949023,0.61608448,3190.1,3189.7,0.01]
[1731759949355,3.13416,3190.7,3189.9,0.01]
[1731759949555,3.1345,3190.3,3189.9,0.01]
[1731759950125,3.13411,3190.7,3189.9,0.01]
[1731759950325,3.74307784,3191.3,3189.9,0.01]
[1731759950326,3.13441,3190.4,3189.9,0.01]
[1731759950532,0.61213683,3190.3,3189.9,0.01]
[1731759950938,3.49464174,3190.4,3189.9,0.01]
[1731759950939,3.13441,3190.4,3189.9,0.01]
[1731759951667,3.13441,3190.4,3189.3,0.3128]
[1731759951668,3.13402,3190.8,3190.2,0.01]
[1731759951834,3.13402,3190.8,3190.2,3.14459]
[1731759952371,3.13402,3190.8,3190.2,0.01]
[1731759952652,3.13419,3190.7,3190.2,0.01]
[1731759952853,0.55,3190.9,3190.2,0.01]
[1731759953056,3.7622601,3190.6,3190.2,0.01]
[1731759953649,0.55,3191.1,3190.4,0.01]
[1731759953650,3.13381,3191.0,3190.4,0.01]
[1731759954029,3.43363,3191.2,3190.6,0.01]
[1731759954251,3.6208604,3192.7,3190.9,0.01]
[1731759954479,3.133,3191.9,3191.3,3.13351]
[1731759954632,3.133,3191.9,3191.2,0.01]
[1731759954633,3.1333,3191.6,3191.2,0.01]
[1731759955261,3.1327,3192.2,3191.7,0.01]
[1731759956522,3.1322,3192.7,3191.7,0.01]
[1731759956724,3.13285,3192.0,3191.7,0.01]
[1731759957153,3.13285,3192.0,3191.0,3.1338]
[1731759957154,3.13332,3191.5,3191.0,3.0]
[1731759957458,3.13332,3191.5,3190.7,6.13402]
[1731759957664,3.13332,3191.5,3190.7,3.0]
[1731759957816,3.13332,3191.5,3191.0,0.01]
[1731759958021,0.37485047,3192.0,3190.8,0.01]
[1731759958022,3.13368,3191.2,3190.8,0.01]
[1731759958524,3.13323,3191.6,3191.0,0.01]
[1731759958758,3.1335,3191.4,3191.0,0.01]
[1731759958953,3.13371,3191.1,3191.0,0.01]
[1731759959721,0.63253341,3191.6,3191.0,0.01]
[1731759959722,3.13351,3191.4,3191.0,0.01]
[1731759959919,0.63253341,3191.6,3191.2,0.01]
[1731759960258,0.63253341,3191.6,3191.3,0.01]
[1731759960259,3.13322,3191.6,3191.3,0.01]
[1731759960968,3.13342,3191.4,3191.3,0.01]
[1731759961153,0.626664,3191.4,3190.8,0.01]
[1731759961325,3.6308604,3192.3,3190.4,0.01]
[1731759961326,3.13389,3191.0,3190.4,0.01]
[1731759962564,3.13361,3191.2,3190.3,6.13448]
[1731759962565,3.13361,3191.2,3191.0,0.01]
[1731759962724,0.63794733,3191.6,3191.0,0.01]
[1731759962725,0.55,3191.3,3191.0,0.01]
[1731759962922,3.68352,3191.3,3191.0,0.01]
[1731759963528,3.68352,3191.3,3190.7,0.01]
[1731759963529,0.55,3191.3,3190.7,0.01]
[1731759963876,3.13372,3191.1,3190.7,0.01]
[1731759964166,3.13408,3190.8,3190.4,0.01]
[1731759964325,3.13412,3190.7,3190.4,0.01]
[1731759964528,3.13392,3190.9,3190.4,0.01]
[1731759964966,3.13384,3191.0,3190.4,0.01]
[1731759965269,3.13422,3190.6,3190.1,0.01]
[1731759965468,3.13422,3190.6,3189.9,3.14484]
[1731759965469,3.13433,3190.5,3189.9,3.14484]
[1731759965625,3.13423,3190.6,3190.4,0.01]
[1731759966025,3.75056833,3190.8,3190.4,0.01]
[1731759966259,0.61653833,3190.8,3190.4,3.14438]
[1731759966444,0.61653833,3190.8,3190.5,3.13429]
[1731759966650,0.61653833,3190.8,3190.6,3.1442]
[1731759967022,0.61653833,3190.8,3190.6,0.01]
[1731759967558,3.13459,3190.2,3190.1,0.3128]
[1731759967723,0.55,3190.7,3190.1,0.3128]
[1731759967724,3.13443,3190.4,3190.2,0.01]
[1731759967926,3.13451,3190.3,3190.1,0.3128]
[1731759968130,0.43005483,3190.6,3189.7,0.01]
[1731759968131,3.1346,3190.2,3189.7,0.01]
[1731759968330,0.55,3190.7,3189.1,0.39963739]
[1731759968331,0.55,3190.7,3189.5,0.01]
[1731759968582,3.13503,3189.8,3189.5,0.01]
[1731759969429,3.13511,3189.7,3189.3,0.01]
[1731759969627,3.13511,3189.7,3189.1,3.39963739]
[1731759969628,3.1354,3189.4,3189.0,0.01]
[1731759970229,3.1354,3189.4,3188.5,3.281061]
[1731759970230,3.13583,3189.0,3188.9,0.01]
[1731759970434,3.13509,3189.7,3188.9,0.01]
[1731759970435,3.13568,3189.1,3188.9,0.01]
[1731759971276,3.13568,3189.1,3188.5,0.154821]
[1731759971277,3.13595,3188.9,3188.5,0.154821]
[1731759972860,3.13595,3188.9,3188.5,0.144821]
[1731759973077,0.63277296,3189.2,3188.5,0.154821]
[1731759973242,3.1361,3188.7,3188.5,0.144821]
[1731759973576,0.31361,3188.7,3188.5,0.154821]
[1731759973776,3.13598,3188.8,3188.5,0.154821]
[1731759974573,0.63277296,3189.2,3188.5,0.154821]
[1731759974574,0.55,3188.9,3188.5,0.154821]
[1731759974777,0.63277296,3189.2,3188.8,0.01]
[1731759974942,3.13522,3189.6,3188.8,0.01]
[1731759975146,0.613522,3189.6,3188.8,0.01]
[1731759975372,3.0,3190.2,3188.8,0.01]
[1731759975373,0.61848433,3189.3,3188.8,0.01]
[1731759975882,3.6208604,3190.3,3189.2,0.01]
[1731759975883,3.13455,3190.3,3189.2,0.01]
[1731759976171,3.13575,3189.1,3188.9,0.01]
[1731759976383,3.13552,3189.3,3188.9,0.01]
[1731759976673,3.13546,3189.4,3188.6,0.01]
[1731759976674,3.13559,3189.2,3188.6,0.01]
[1731759976887,0.627105,3189.2,3188.6,0.01]
[1731759977059,3.76456645,3189.6,3189.1,0.01]
[1731759977268,3.761535,3190.2,3188.5,0.144821]
[1731759977269,3.761565,3190.2,3189.3,0.01]
[1731759977586,3.761565,3190.2,3188.8,3.14589]
[1731759977587,3.13529,3189.5,3188.8,3.14589]
[1731759977756,0.61789493,3189.9,3188.8,3.14589]
[1731759977955,0.61789493,3189.9,3188.8,0.01]
[1731759978187,3.13585,3189.0,3188.6,0.01]
[1731759978682,0.61789493,3189.9,3188.5,0.144821]
[1731759978683,3.1354,3189.4,3188.9,0.01]
[1731759978846,0.55,3189.5,3188.9,0.01]
[1731759979047,0.61789493,3189.9,3188.9,0.01]
[1731759979048,3.13575,3189.1,3188.9,0.01]
[1731759979384,0.55,3189.0,3188.5,0.154821]
[1731759979589,0.55,3189.0,3188.5,0.144821]
[1731759979753,0.01,3189.6,3188.5,0.144821]
[1731759979754,3.68617,3188.6,3188.5,0.144821]
[1731759979953,3.13703,3187.8,3187.4,0.01]
[1731759980150,1.233222,3188.6,3187.4,0.01]
[1731759980151,3.13708,3187.7,3187.4,0.01]
[1731759980654,3.13688,3187.9,3187.6,0.01]
[1731759980876,3.13697,3187.8,3187.6,0.01]
[1731759981210,3.13708,3187.7,3187.3,0.01]
[1731759981347,0.55,3187.9,3187.6,0.01]
[1731759981551,3.13654,3188.3,3187.8,0.01]
[1731759981851,3.13654,3188.3,3188.0,0.01]
[1731759982549,3.13638,3188.4,3188.0,0.01]
[1731759982751,0.4233222,3188.5,3187.3,3.01]
[1731759982950,0.01,3188.8,3186.4,0.01]
[1731759982951,3.13704,3187.8,3187.7,0.01]
[1731759983574,3.13685,3188.0,3187.7,0.01]
[1731759983962,0.61563824,3188.3,3187.7,0.01]
[1731759984163,3.75212824,3188.3,3187.7,0.01]
[1731759984392,0.61563824,3188.3,3187.7,3.14704]
[1731759984589,0.61563824,3188.3,3186.9,3.01]
[1731759984590,0.55,3188.2,3187.4,0.01]
[1731759984788,0.55,3188.0,3187.2,0.01]
[1731759984965,3.13699,3187.8,3187.7,0.01]
[1731759985163,3.13724,3187.6,3187.2,0.01]
[1731759985385,3.13724,3187.6,3187.0,3.0]
[1731759985386,3.13724,3187.6,3187.1,0.01]
[1731759985866,3.68677,3188.0,3187.7,0.01]
[1731759986072,3.13659,3188.2,3187.7,0.01]
[1731759986298,0.61563824,3188.3,3187.8,3.13687]
[1731759986589,0.61563824,3188.3,3186.9,3.01]
[1731759986590,0.61563824,3188.3,3188.0,0.01]
[1731759986774,0.99083906,3188.3,3188.0,0.01]
[1731759987887,0.99083906,3188.3,3187.6,3.13707]
[1731759987888,3.13598,3188.8,3188.2,0.01]
[1731759988194,3.1362,3188.6,3188.2,0.01]
[1731759988382,3.13598,3188.8,3188.2,0.01]
[1731759988585,3.13607,3188.7,3188.2,0.01]
[1731759988982,0.61674864,3188.8,3188.2,0.01]
[1731759989192,0.61674864,3188.8,3185.4,3.40148945]
[1731759989193,3.13638,3188.4,3187.7,3.14703]
[1731759989772,0.55,3188.7,3187.7,0.01]
[1731759989773,3.13656,3188.2,3187.7,0.01]
[1731759989998,4.1808604,3188.7,3187.2,0.01]
[1731759989999,3.13698,3187.8,3187.2,0.01]
[1731759990418,3.13698,3187.8,3187.7,0.01]
[1731759991015,3.13674,3188.1,3187.7,0.01]
[1731759991016,3.13647,3188.3,3187.7,0.01]
[1731759991224,3.13628,3188.5,3187.7,0.01]
[1731759991511,3.13628,3188.5,3187.8,3.13694]
[1731759992075,3.68607,3188.7,3187.8,3.13694]
[1731759992594,3.13639,3188.4,3187.8,3.13694]
[1731759993179,3.13639,3188.4,3187.7,3.14703]
[1731759993380,3.13639,3188.4,3186.9,0.01]
[1731759993381,0.55,3188.3,3187.2,3.14749]
[1731759993688,3.13693,3187.9,3187.2,3.01]
[1731759993889,3.13696,3187.8,3187.2,3.01]
[1731759994278,3.13712,3187.7,3187.2,0.01]
[1731759994476,3.13712,3187.7,3186.9,3.13782]
[1731759994477,0.313712,3187.7,3187.4,0.01]
[1731759994719,0.55,3188.3,3187.4,0.01]
[1731759994720,3.1367,3188.1,3187.4,0.01]
[1731759994907,3.13693,3187.9,3187.4,0.01]
[1731759995092,3.1367,3188.1,3187.4,0.01]
[1731759995425,3.13649,3188.3,3187.4,0.01]
[1731759995426,3.13655,3188.3,3187.7,0.01]
[1731759995719,0.63668826,3188.4,3187.9,3.13683]
[1731759996400,0.63668826,3188.4,3187.7,3.14704]
[1731759996401,3.77305826,3188.4,3187.7,3.14704]
[1731759996914,0.63668826,3188.4,3187.8,3.13695]
[1731759997129,0.55,3188.7,3188.1,0.01]
[1731759997279,0.313579,3188.9,3188.1,0.01]
[1731759997280,3.449469,3188.9,3188.2,3.13648]
[1731759997478,3.13598,3188.8,3188.2,3.13648]
[1731759998319,0.62498627,3188.8,3187.6,3.13709]
[1731759998520,3.55,3188.6,3187.2,0.01]
[1731759998830,3.68653,3188.3,3187.6,3.14714]
[1731759999012,3.13627,3188.5,3187.9,0.01]
[1731759999216,3.13627,3188.5,3187.9,3.14685]
[1731759999413,3.13627,3188.5,3188.0,0.22974901]
[1731759999578,3.13627,3188.5,3187.9,3.14685]
[1731759999579,3.13644,3188.4,3187.9,0.01]
[1731759999782,0.62498627,3188.8,3187.5,3.0]
[1731759999783,0.55,3188.2,3187.5,3.0]
[1731760000095,3.13677,3188.0,3187.5,3.0]
[1731760000830,3.13677,3188.0,3187.9,0.01]
[1731760001426,3.68657,3188.2,3187.9,0.01]
[1731760001716,3.1358,3189.0,3187.9,0.01]
[1731760001717,0.64242017,3188.3,3187.9,0.01]
[1731760001944,0.64242017,3188.3,3187.8,3.13694]
[1731760002155,0.64242017,3188.3,3187.9,0.01]
[1731760002508,0.64242017,3188.3,3188.0,3.13675]
[1731760003213,0.64242017,3188.3,3187.9,0.01]
[1731760003416,0.64242017,3188.3,3187.9,3.1468]
[1731760003624,0.64242017,3188.3,3187.9,0.01]
[1731760003818,0.64242017,3188.3,3188.0,3.13676]
[1731760004403,0.64242017,3188.3,3187.9,0.01]
[1731760004636,0.64242017,3188.3,3188.1,3.13665]
[1731760006009,0.67666604,3188.9,3188.3,3.13637]
[1731760006010,0.55,3188.9,3188.3,3.13637]
[1731760006206,3.13612,3188.7,3188.2,0.01]
[1731760006526,3.13614,3188.7,3188.2,0.01]
[1731760006718,0.313614,3188.6,3188.2,0.01]
[1731760006918,0.313614,3188.6,3188.2,3.14655]
[1731760007137,3.77846959,3188.9,3188.2,3.14655]
[1731760007645,0.64257959,3188.9,3188.2,3.14655]
[1731760007938,0.64257959,3188.9,3188.3,3.13639]
[1731760008153,3.13597,3188.8,3188.2,0.01]
[1731760008309,3.13597,3188.8,3188.2,3.14655]
[1731760008736,0.64257959,3188.9,3188.2,3.14655]
[1731760008944,0.64257959,3188.9,3188.4,3.13635]
[1731760009123,3.13578,3189.0,3188.4,3.13635]
[1731760009458,3.76327449,3189.0,3188.4,3.13635]
[1731760009960,4.80816194,3189.0,3188.4,3.13635]
[1731760010156,4.80816194,3189.0,3188.4,3.14635]
[1731760010339,3.76327449,3189.0,3188.4,3.14635]
[1731760010554,3.13602,3188.8,3188.4,0.01]
[1731760011640,3.76333449,3189.0,3188.4,0.01]
[1731760011954,0.55,3189.2,3188.7,0.01]
[1731760011955,3.13564,3189.2,3188.7,0.01]
[1731760013188,3.13539,3189.4,3188.7,0.01]
[1731760013311,3.13539,3189.4,3188.7,3.14603]
[1731760013512,3.448929,3189.4,3188.7,3.14603]
[1731760014057,3.448929,3189.4,3188.7,0.01]
[1731760014058,3.13552,3189.3,3188.7,0.01]
[1731760014362,3.76378967,3189.3,3188.4,0.01]
[1731760014574,3.1361,3188.7,3188.4,0.01]
[1731760014787,3.13599,3188.8,3188.4,0.01]
[1731760015337,0.95773287,3189.2,3188.4,0.01]
[1731760015338,3.13578,3189.0,3188.4,0.01]
[1731760015571,3.68561,3189.2,3188.4,3.14633]
[1731760015782,6.448949,3189.4,3187.8,3.1369]
[1731760015783,3.13541,3189.4,3188.8,3.13594]
[1731760016677,3.13541,3189.4,3188.9,0.01]
[1731760016862,3.13554,3189.3,3188.9,0.01]
[1731760017879,3.13558,3189.2,3188.9,0.01]
[1731760018173,3.13559,3189.2,3188.9,0.01]
[1731760018338,3.75375004,3189.5,3188.9,0.01]
[1731760018534,3.13538,3189.4,3188.9,0.01]
[1731760018743,3.510763,3189.4,3188.9,0.01]
[1731760019254,0.375383,3189.4,3188.9,0.01]
[1731760019455,3.75374004,3189.5,3188.9,0.01]
[1731760021251,3.13539,3189.4,3188.9,0.01]
[1731760022153,3.13553,3189.3,3188.9,0.01]
[1731760022347,3.13577,3189.0,3188.9,0.01]
[1731760022661,3.762908,3189.0,3188.8,0.01]
[1731760022864,0.55,3189.3,3188.3,0.01]
[1731760023061,3.13609,3188.7,3188.3,0.01]
[1731760023293,3.13606,3188.8,3188.3,0.01]
[1731760023595,3.13611,3188.7,3188.3,0.01]
[1731760023788,3.13611,3188.7,3188.6,0.01]
[1731760024085,3.13611,3188.7,3188.3,0.01]
[1731760024287,3.13594,3188.9,3188.8,0.01]
[1731760024891,3.13565,3189.2,3188.8,0.01]
[1731760025193,3.13575,3189.1,3188.8,0.01]
[1731760025700,3.1355,3189.3,3188.8,0.01]
[1731760025885,3.1354,3189.4,3188.8,0.01]
[1731760026200,3.824306,3189.4,3188.8,0.01]
[1731760026546,0.61845004,3189.5,3189.0,0.01]
[1731760026752,0.61845004,3189.5,3189.0,3.14575]
[1731760027698,3.75373004,3189.5,3189.0,0.01]
[1731760028233,3.75373004,3189.5,3186.7,11.41654824]
[1731760028234,0.61845004,3189.5,3189.2,3.14557]
[1731760028387,3.70374004,3189.5,3189.2,0.01]
[1731760028559,3.13538,3189.4,3189.2,0.01]
[1731760028764,0.56845004,3189.5,3189.2,0.01]
[1731760029782,3.70374004,3189.5,3189.2,0.01]
[1731760030093,3.70374004,3189.5,3188.9,3.13587]
[1731760030094,3.70374004,3189.5,3188.9,3.14587]
[1731760030282,3.70374004,3189.5,3189.2,0.01]
[1731760030798,0.56845004,3189.5,3189.2,0.01]
[1731760032476,3.70375004,3189.5,3189.2,0.01]
[1731760032673,0.56845004,3189.5,3189.2,0.01]
[1731760033783,0.56845004,3189.5,3188.4,0.01]
[1731760034039,0.56845004,3189.5,3186.9,5.0]
[1731760034040,3.68538,3189.4,3188.2,0.01]
[1731760034178,3.68538,3189.4,3187.2,0.01]
[1731760034179,3.13639,3188.4,3187.8,3.14695]
[1731760034875,0.55,3189.0,3187.7,0.01]
[1731760035076,0.55,3188.8,3187.7,0.01]
[1731760035316,3.13657,3188.2,3187.5,3.14716]
[1731760035528,0.682174,3188.7,3188.1,0.01]
[1731760035529,3.1362,3188.6,3188.1,0.01]
[1731760035823,0.425383,3189.3,3188.1,3.14664]
[1731760035824,3.13595,3188.9,3188.1,3.14664]
[1731760036021,6.85260323,3189.3,3188.4,0.01]
[1731760036022,3.13557,3189.3,3188.4,0.01]
[1731760036180,3.13569,3189.1,3188.4,3.14629]
[1731760036522,3.13569,3189.1,3188.4,3.774572]
[1731760036523,3.1358,3189.0,3188.4,3.774572]
[1731760037023,3.0,3189.5,3188.5,0.01]
[1731760037227,0.6279109,3188.6,3188.5,3.20899382]
[1731760037376,3.13531,3189.5,3188.7,3.13598]
[1731760037578,3.13518,3189.6,3188.7,3.774205]
[1731760037778,3.13542,3189.4,3188.7,3.774205]
[1731760038589,3.13518,3189.6,3189.0,0.01]
[1731760039117,3.13499,3189.8,3189.0,0.01]